[Event "Titled Tuesday Blitz July 27 2021"]
[White "Quparadze, Giga"]
[Black "Nakamura, Hikaru"]
[WhiteFideId "13602250"]
[BlackFideId "2016192"]
[WhiteElo "2658"]
[BlackElo "2900"]
[Result "1/2-1/2"]
[Round "10"]
[TimeControl "180+1"]
[Date "2021.07.27"]
[WhiteClock "0:00:28"]
[BlackClock "0:00:30"]

1. e4 {[%clk 0:03:00]}  d5 {[%clk 0:02:52]} 2. exd5 {[%clk 0:03:00]}  Qxd5 {[%clk 0:02:53]} 3. Nc3 {[%clk 0:03:00]}  Qa5 {[%clk 0:02:53]} 4. Nf3 {[%clk 0:03:00]}  c6 {[%clk 0:02:53]} 5. d4 {[%clk 0:03:00]}  Bf5 {[%clk 0:02:53]} 6. Bc4 {[%clk 0:02:57]}  e6 {[%clk 0:02:53]} 7. Bd2 {[%clk 0:02:57]}  Nf6 {[%clk 0:02:52]} 8. Qe2 {[%clk 0:02:57]}  Bb4 {[%clk 0:02:52]} 9. a3 {[%clk 0:02:53]}  O-O {[%clk 0:02:49]} 10. O-O {[%clk 0:02:51]}  Bxc3 {[%clk 0:02:49]} 11. Bxc3 {[%clk 0:02:52]}  Qc7 {[%clk 0:02:50]} 12. Ne5 {[%clk 0:02:50]}  Nbd7 {[%clk 0:02:50]} 13. Nxd7 {[%clk 0:02:50]}  Qxd7 {[%clk 0:02:47]} 14. a4 {[%clk 0:02:45]}  Nd5 {[%clk 0:02:33]} 15. Bd2 {[%clk 0:02:33]}  Bxc2 {[%clk 0:02:27]} 16. Bxd5 {[%clk 0:02:32]}  cxd5 {[%clk 0:02:27]} 17. Bb4 {[%clk 0:02:29]}  Rfc8 {[%clk 0:02:27]} 18. a5 {[%clk 0:02:27]}  Rc4 {[%clk 0:02:21]} 19. Bc5 {[%clk 0:02:24]}  Bg6 {[%clk 0:02:18]} 20. Rfc1 {[%clk 0:02:23]}  Rxc1+ {[%clk 0:02:06]} 21. Rxc1 {[%clk 0:02:23]}  Rc8 {[%clk 0:02:06]} 22. Qd2 {[%clk 0:02:21]}  a6 {[%clk 0:01:59]} 23. Bb6 {[%clk 0:02:20]}  Rc4 {[%clk 0:01:58]} 24. b3 {[%clk 0:02:16]}  Rc6 {[%clk 0:01:56]} 25. Rc5 {[%clk 0:02:10]}  Rxc5 {[%clk 0:01:53]} 26. Bxc5 {[%clk 0:02:11]}  Qb5 {[%clk 0:01:48]} 27. b4 {[%clk 0:02:11]}  h6 {[%clk 0:01:45]} 28. h3 {[%clk 0:02:11]}  Qc4 {[%clk 0:01:43]} 29. Qf4 {[%clk 0:02:11]}  Qe2 {[%clk 0:01:39]} 30. Qe5 {[%clk 0:01:52]}  Qd2 {[%clk 0:01:35]} 31. f3 {[%clk 0:01:49]}  Bd3 {[%clk 0:01:22]} 32. Qb8+ {[%clk 0:01:28]}  Kh7 {[%clk 0:01:22]} 33. Qxb7 {[%clk 0:01:25]}  Qe3+ {[%clk 0:01:20]} 34. Kh2 {[%clk 0:01:25]}  Bf1 {[%clk 0:01:12]} 35. Qc7 {[%clk 0:01:14]}  Qd2 {[%clk 0:01:04]} 36. Qg3 {[%clk 0:01:13]}  g5 {[%clk 0:01:04]} 37. Kg1 {[%clk 0:01:10]}  Qd1 {[%clk 0:01:04]} 38. Qf2 {[%clk 0:01:06]}  Bb5+ {[%clk 0:01:03]} 39. Kh2 {[%clk 0:01:06]}  Qc1 {[%clk 0:01:02]} 40. Bd6 {[%clk 0:01:06]}  f5 {[%clk 0:00:57]} 41. f4 {[%clk 0:01:05]}  Bd3 {[%clk 0:00:46]} 42. Be5 {[%clk 0:01:03]}  Kg6 {[%clk 0:00:41]} 43. Qg3 {[%clk 0:00:43]}  Qd2 {[%clk 0:00:23]} 44. fxg5 {[%clk 0:00:42]}  hxg5 {[%clk 0:00:24]} 45. h4 {[%clk 0:00:42]}  Bf1 {[%clk 0:00:23]} 46. Qxg5+ {[%clk 0:00:27]}  Qxg5 {[%clk 0:00:23]} 47. hxg5 {[%clk 0:00:28]}  Kxg5 {[%clk 0:00:24]} 48. Kg3 {[%clk 0:00:29]}  Bb5 {[%clk 0:00:24]} 49. Kf3 {[%clk 0:00:29]}  Kg6 {[%clk 0:00:25]} 50. Kf4 {[%clk 0:00:27]}  Bc4 {[%clk 0:00:26]} 51. g3 {[%clk 0:00:27]}  Bb5 {[%clk 0:00:27]} 52. Bd6 {[%clk 0:00:28]}  Bc4 {[%clk 0:00:28]} 53. Ke5 {[%clk 0:00:27]}  Kf7 {[%clk 0:00:28]} 54. Bc5 {[%clk 0:00:25]}  Bb5 {[%clk 0:00:28]} 55. Bd6 {[%clk 0:00:26]}  Bc4 {[%clk 0:00:29]} 56. Kf4 {[%clk 0:00:26]}  Bb5 {[%clk 0:00:29]} 57. Bc5 {[%clk 0:00:26]}  Bc4 {[%clk 0:00:29]} 58. Bd6 {[%clk 0:00:27]}  Bb5 {[%clk 0:00:30]} 59. Bc5 {[%clk 0:00:27]}  Bc4 {[%clk 0:00:30]} 60. Bd6 {[%clk 0:00:28]} 1/2-1/2


[Site "https://www.chess.com"]

[Event "Titled Tuesday Blitz July 27 2021"]
[White "Sinitsina, Anastassia"]
[Black "Gurevich, Dmitry"]
[WhiteFideId "4504640"]
[BlackFideId "2000407"]
[WhiteElo "2204"]
[BlackElo "2506"]
[Result "0-1"]
[Round "10"]
[TimeControl "180+1"]
[Date "2021.07.27"]
[WhiteClock "0:00:07"]
[BlackClock "0:00:09"]

1. e4 {[%clk 0:03:00]}  c5 {[%clk 0:03:00]} 2. d3 {[%clk 0:03:01]}  d5 {[%clk 0:02:59]} 3. Nd2 {[%clk 0:03:00]}  Nc6 {[%clk 0:02:58]} 4. g3 {[%clk 0:03:00]}  g6 {[%clk 0:02:54]} 5. Bg2 {[%clk 0:03:01]}  d4 {[%clk 0:02:54]} 6. Ngf3 {[%clk 0:03:01]}  Bg7 {[%clk 0:02:54]} 7. O-O {[%clk 0:03:00]}  e5 {[%clk 0:02:54]} 8. a4 {[%clk 0:03:00]}  Nge7 {[%clk 0:02:50]} 9. Nc4 {[%clk 0:03:00]}  O-O {[%clk 0:02:49]} 10. Ne1 {[%clk 0:02:59]}  f5 {[%clk 0:02:37]} 11. exf5 {[%clk 0:02:54]}  Bxf5 {[%clk 0:02:35]} 12. f4 {[%clk 0:02:51]}  Qd7 {[%clk 0:02:26]} 13. Nf3 {[%clk 0:02:48]}  exf4 {[%clk 0:02:00]} 14. Bxf4 {[%clk 0:02:45]}  Rad8 {[%clk 0:01:51]} 15. Qd2 {[%clk 0:02:35]}  Bh3 {[%clk 0:01:50]} 16. Rae1 {[%clk 0:02:29]}  Bxg2 {[%clk 0:01:48]} 17. Qxg2 {[%clk 0:02:28]}  Nd5 {[%clk 0:01:45]} 18. Bd6 {[%clk 0:02:13]}  Ne3 {[%clk 0:01:35]} 19. Nxe3 {[%clk 0:01:49]}  Qxd6 {[%clk 0:01:34]} 20. Nc4 {[%clk 0:01:48]}  Qc7 {[%clk 0:01:31]} 21. Ng5 {[%clk 0:01:46]}  Rxf1+ {[%clk 0:01:13]} 22. Rxf1 {[%clk 0:01:41]}  Qd7 {[%clk 0:01:07]} 23. Re1 {[%clk 0:01:33]}  h6 {[%clk 0:01:01]} 24. Ne4 {[%clk 0:01:28]}  Qd5 {[%clk 0:00:55]} 25. Rf1 {[%clk 0:01:22]}  Kh8 {[%clk 0:00:43]} 26. Nf6 {[%clk 0:01:05]}  Qxg2+ {[%clk 0:00:41]} 27. Kxg2 {[%clk 0:01:05]}  b6 {[%clk 0:00:37]} 28. Ne4 {[%clk 0:01:03]}  Kg8 {[%clk 0:00:36]} 29. Rf2 {[%clk 0:01:01]}  Rf8 {[%clk 0:00:31]} 30. Rxf8+ {[%clk 0:01:00]}  Kxf8 {[%clk 0:00:31]} 31. Kf2 {[%clk 0:00:59]}  Ke7 {[%clk 0:00:31]} 32. Ke2 {[%clk 0:00:59]}  Ke6 {[%clk 0:00:31]} 33. Kd2 {[%clk 0:00:59]}  Bf8 {[%clk 0:00:30]} 34. Na3 {[%clk 0:00:57]}  Be7 {[%clk 0:00:30]} 35. Nb5 {[%clk 0:00:57]}  Kf5 {[%clk 0:00:28]} 36. h3 {[%clk 0:00:52]}  h5 {[%clk 0:00:28]} 37. Nbd6+ {[%clk 0:00:51]}  Ke6 {[%clk 0:00:25]} 38. Nb5 {[%clk 0:00:50]}  g5 {[%clk 0:00:22]} 39. Nc7+ {[%clk 0:00:49]}  Kf5 {[%clk 0:00:21]} 40. Nd5 {[%clk 0:00:48]}  g4 {[%clk 0:00:19]} 41. Nxe7+ {[%clk 0:00:45]}  Nxe7 {[%clk 0:00:18]} 42. h4 {[%clk 0:00:46]}  Nc6 {[%clk 0:00:15]} 43. Ke2 {[%clk 0:00:43]}  Nb4 {[%clk 0:00:14]} 44. Kd2 {[%clk 0:00:42]}  Nd5 {[%clk 0:00:14]} 45. Nd6+ {[%clk 0:00:42]}  Ke6 {[%clk 0:00:13]} 46. Ne4 {[%clk 0:00:38]}  Ne3 {[%clk 0:00:14]} 47. c3 {[%clk 0:00:34]}  Ke5 {[%clk 0:00:13]} 48. Ke2 {[%clk 0:00:31]}  dxc3 {[%clk 0:00:12]} 49. bxc3 {[%clk 0:00:29]}  Nf5 {[%clk 0:00:12]} 50. Kf2 {[%clk 0:00:28]}  a6 {[%clk 0:00:12]} 51. Nd2 {[%clk 0:00:27]}  b5 {[%clk 0:00:11]} 52. axb5 {[%clk 0:00:27]}  axb5 {[%clk 0:00:12]} 53. Nb3 {[%clk 0:00:27]}  Kd5 {[%clk 0:00:12]} 54. Nd2 {[%clk 0:00:26]}  Nd6 {[%clk 0:00:12]} 55. Nb3 {[%clk 0:00:25]}  c4 {[%clk 0:00:12]} 56. Nc1 {[%clk 0:00:20]}  cxd3 {[%clk 0:00:11]} 57. Nxd3 {[%clk 0:00:20]}  Ne4+ {[%clk 0:00:12]} 58. Kg2 {[%clk 0:00:19]}  Kc4 {[%clk 0:00:12]} 59. Nf4 {[%clk 0:00:18]}  Nf6 {[%clk 0:00:12]} 60. Ne2 {[%clk 0:00:18]}  Kd3 {[%clk 0:00:12]} 61. Nd4 {[%clk 0:00:17]}  Kc4 {[%clk 0:00:09]} 62. Ne2 {[%clk 0:00:16]}  Nd5 {[%clk 0:00:08]} 63. Kf2 {[%clk 0:00:14]}  Nxc3 {[%clk 0:00:07]} 64. Nf4 {[%clk 0:00:14]}  Ne4+ {[%clk 0:00:08]} 65. Ke3 {[%clk 0:00:14]}  Nf6 {[%clk 0:00:08]} 66. Kd2 {[%clk 0:00:13]}  b4 {[%clk 0:00:09]} 67. Kc2 {[%clk 0:00:13]}  Kd4 {[%clk 0:00:09]} 68. Kb3 {[%clk 0:00:12]}  Ke4 {[%clk 0:00:09]} 69. Kxb4 {[%clk 0:00:12]}  Kf3 {[%clk 0:00:10]} 70. Kc5 {[%clk 0:00:12]}  Kxg3 {[%clk 0:00:10]} 71. Ng6 {[%clk 0:00:12]}  Kf3 {[%clk 0:00:09]} 72. Kd4 {[%clk 0:00:12]}  g3 {[%clk 0:00:09]} 73. Ke5 {[%clk 0:00:12]}  g2 {[%clk 0:00:09]} 74. Kxf6 {[%clk 0:00:12]}  g1=Q {[%clk 0:00:09]} 75. Kf5 {[%clk 0:00:11]}  Qg4+ {[%clk 0:00:08]} 76. Kf6 {[%clk 0:00:11]}  Ke4 {[%clk 0:00:08]} 77. Kf7 {[%clk 0:00:10]}  Kf5 {[%clk 0:00:08]} 78. Ne7+ {[%clk 0:00:09]}  Kf4 {[%clk 0:00:08]} 79. Ng6+ {[%clk 0:00:09]}  Kg3 {[%clk 0:00:09]} 80. Kf6 {[%clk 0:00:07]}  Qxg6+ {[%clk 0:00:09]} 0-1


[Site "https://www.chess.com"]

[Event "Titled Tuesday Blitz July 27 2021"]
[White "Sliwicki, Damian"]
[Black "Do Valle Cardoso, Lucas"]
[WhiteFideId "1127128"]
[BlackFideId "2163144"]
[WhiteElo "2149"]
[BlackElo "2387"]
[Result "0-1"]
[Round "10"]
[TimeControl "180+1"]
[Date "2021.07.27"]
[WhiteClock "0:00:11"]
[BlackClock "0:01:01"]

1. e4 {[%clk 0:03:00]}  e5 {[%clk 0:02:59]} 2. Nf3 {[%clk 0:02:59]}  Nc6 {[%clk 0:02:58]} 3. d4 {[%clk 0:02:58]}  exd4 {[%clk 0:02:56]} 4. Bc4 {[%clk 0:02:58]}  Nf6 {[%clk 0:02:56]} 5. O-O {[%clk 0:02:57]}  Nxe4 {[%clk 0:02:56]} 6. Nc3 {[%clk 0:02:57]}  Nxc3 {[%clk 0:02:55]} 7. bxc3 {[%clk 0:02:56]}  d5 {[%clk 0:02:56]} 8. Bb5 {[%clk 0:02:56]}  Be7 {[%clk 0:02:55]} 9. Re1 {[%clk 0:02:52]}  O-O {[%clk 0:02:54]} 10. Bxc6 {[%clk 0:02:51]}  bxc6 {[%clk 0:02:54]} 11. cxd4 {[%clk 0:02:52]}  Bd6 {[%clk 0:02:50]} 12. Qd3 {[%clk 0:02:48]}  h6 {[%clk 0:02:48]} 13. Ne5 {[%clk 0:02:44]}  Qf6 {[%clk 0:02:48]} 14. h3 {[%clk 0:02:20]}  Bf5 {[%clk 0:02:46]} 15. Qc3 {[%clk 0:02:11]}  Rfe8 {[%clk 0:02:37]} 16. Ba3 {[%clk 0:02:05]}  Bxa3 {[%clk 0:02:31]} 17. Qxa3 {[%clk 0:02:05]}  Bxc2 {[%clk 0:02:26]} 18. Rac1 {[%clk 0:02:02]}  Bg6 {[%clk 0:01:59]} 19. Rxc6 {[%clk 0:01:57]}  Qxc6 {[%clk 0:01:57]} 20. Nxc6 {[%clk 0:01:54]}  Rxe1+ {[%clk 0:01:58]} 21. Kh2 {[%clk 0:01:55]}  Kh7 {[%clk 0:01:42]} 22. Qc5 {[%clk 0:01:45]}  Re2 {[%clk 0:01:36]} 23. Ne5 {[%clk 0:01:33]}  Rxf2 {[%clk 0:01:34]} 24. Qxd5 {[%clk 0:01:28]}  Rb8 {[%clk 0:01:30]} 25. Nf3 {[%clk 0:01:00]}  Rbb2 {[%clk 0:01:27]} 26. Nh4 {[%clk 0:01:00]}  Rxa2 {[%clk 0:01:25]} 27. Qc4 {[%clk 0:00:55]}  Rfc2 {[%clk 0:01:23]} 28. Qb3 {[%clk 0:00:54]}  a5 {[%clk 0:01:22]} 29. Kg3 {[%clk 0:00:45]}  a4 {[%clk 0:01:22]} 30. Qd5 {[%clk 0:00:40]}  a3 {[%clk 0:01:20]} 31. Kf4 {[%clk 0:00:19]}  Rf2+ {[%clk 0:01:17]} 32. Nf3 {[%clk 0:00:19]}  Rxg2 {[%clk 0:01:17]} 33. h4 {[%clk 0:00:19]}  Raf2 {[%clk 0:01:05]} 34. h5 {[%clk 0:00:19]}  Bb1 {[%clk 0:01:04]} 35. Ke3 {[%clk 0:00:18]}  a2 {[%clk 0:01:02]} 36. Ng5+ {[%clk 0:00:11]}  Rxg5 {[%clk 0:01:01]} 0-1


[Site "https://www.chess.com"]

[Event "Titled Tuesday Blitz July 27 2021"]
[White "Solon, Nathan"]
[Black "Nogerbek, Kazybek"]
[WhiteFideId "2017229"]
[BlackFideId "13710427"]
[WhiteElo "2634"]
[BlackElo "2466"]
[Result "0-1"]
[Round "10"]
[TimeControl "180+1"]
[Date "2021.07.27"]
[WhiteClock "0:00:05"]
[BlackClock "0:01:43"]

1. d4 {[%clk 0:03:00]}  g6 {[%clk 0:02:59]} 2. c4 {[%clk 0:02:59]}  Bg7 {[%clk 0:02:59]} 3. g3 {[%clk 0:02:59]}  d6 {[%clk 0:03:00]} 4. Bg2 {[%clk 0:03:00]}  Nc6 {[%clk 0:03:00]} 5. e3 {[%clk 0:02:59]}  e5 {[%clk 0:03:01]} 6. Ne2 {[%clk 0:02:54]}  Nge7 {[%clk 0:03:01]} 7. Nbc3 {[%clk 0:02:52]}  O-O {[%clk 0:03:02]} 8. O-O {[%clk 0:02:52]}  exd4 {[%clk 0:03:02]} 9. Nxd4 {[%clk 0:02:49]}  Nxd4 {[%clk 0:03:01]} 10. exd4 {[%clk 0:02:50]}  Nf5 {[%clk 0:03:00]} 11. d5 {[%clk 0:02:31]}  Re8 {[%clk 0:03:00]} 12. Ne4 {[%clk 0:02:25]}  h6 {[%clk 0:03:00]} 13. h4 {[%clk 0:02:14]}  Bd7 {[%clk 0:02:58]} 14. Re1 {[%clk 0:02:11]}  Re7 {[%clk 0:02:52]} 15. Bf4 {[%clk 0:02:05]}  Qf8 {[%clk 0:02:51]} 16. Qd2 {[%clk 0:02:02]}  Rae8 {[%clk 0:02:51]} 17. Rac1 {[%clk 0:01:53]}  b6 {[%clk 0:02:45]} 18. b4 {[%clk 0:01:52]}  f6 {[%clk 0:02:13]} 19. c5 {[%clk 0:01:29]}  bxc5 {[%clk 0:02:14]} 20. bxc5 {[%clk 0:01:29]}  g5 {[%clk 0:02:14]} 21. cxd6 {[%clk 0:01:23]}  cxd6 {[%clk 0:02:15]} 22. Be3 {[%clk 0:00:48]}  Rxe4 {[%clk 0:02:14]} 23. Bxe4 {[%clk 0:00:48]}  Rxe4 {[%clk 0:02:15]} 24. Bxa7 {[%clk 0:00:48]}  Rxe1+ {[%clk 0:02:12]} 25. Rxe1 {[%clk 0:00:49]}  gxh4 {[%clk 0:02:13]} 26. g4 {[%clk 0:00:50]}  Ne7 {[%clk 0:02:13]} 27. f3 {[%clk 0:00:34]}  Ng6 {[%clk 0:02:10]} 28. Rb1 {[%clk 0:00:23]}  f5 {[%clk 0:02:09]} 29. Rb8 {[%clk 0:00:22]}  Be8 {[%clk 0:02:04]} 30. Qe2 {[%clk 0:00:21]}  Be5 {[%clk 0:01:52]} 31. Kh1 {[%clk 0:00:07]}  fxg4 {[%clk 0:01:50]} 32. fxg4 {[%clk 0:00:08]}  Kh7 {[%clk 0:01:50]} 33. Rb7+ {[%clk 0:00:05]}  Kh8 {[%clk 0:01:50]} 34. Rb8 {[%clk 0:00:06]}  Kg7 {[%clk 0:01:45]} 35. Rb7+ {[%clk 0:00:05]}  Bf7 {[%clk 0:01:45]} 36. Be3 {[%clk 0:00:05]}  Kg8 {[%clk 0:01:43]} 37. a4 {[%clk 0:00:05]}  Bxd5+ {[%clk 0:01:43]} 0-1


[Site "https://www.chess.com"]

[Event "Titled Tuesday Blitz July 27 2021"]
[White "Srihari L R"]
[Black "Mezentsev, Ivan"]
[WhiteFideId "46617116"]
[BlackFideId "13706195"]
[WhiteElo "2121"]
[BlackElo "2295"]
[Result "1/2-1/2"]
[Round "10"]
[TimeControl "180+1"]
[Date "2021.07.27"]
[WhiteClock "0:00:03"]
[BlackClock "0:00:02"]

1. d4 {[%clk 0:03:00]}  Nf6 {[%clk 0:02:55]} 2. c4 {[%clk 0:03:00]}  c5 {[%clk 0:02:55]} 3. Nf3 {[%clk 0:02:59]}  g6 {[%clk 0:02:54]} 4. g3 {[%clk 0:02:58]}  Bg7 {[%clk 0:02:54]} 5. Bg2 {[%clk 0:02:58]}  O-O {[%clk 0:02:54]} 6. O-O {[%clk 0:02:59]}  cxd4 {[%clk 0:02:53]} 7. Nxd4 {[%clk 0:03:00]}  d6 {[%clk 0:02:51]} 8. Nc3 {[%clk 0:03:00]}  Qb6 {[%clk 0:02:42]} 9. Nb3 {[%clk 0:02:54]}  Nc6 {[%clk 0:02:41]} 10. Be3 {[%clk 0:02:52]}  Qd8 {[%clk 0:02:40]} 11. Rc1 {[%clk 0:02:50]}  Be6 {[%clk 0:02:39]} 12. Nd5 {[%clk 0:02:49]}  Rc8 {[%clk 0:02:34]} 13. Qd2 {[%clk 0:02:41]}  Ne5 {[%clk 0:02:29]} 14. Nxf6+ {[%clk 0:02:36]}  Bxf6 {[%clk 0:02:27]} 15. Bxb7 {[%clk 0:02:35]}  Nxc4 {[%clk 0:02:22]} 16. Qb4 {[%clk 0:02:24]}  Nxe3 {[%clk 0:02:14]} 17. Bxc8 {[%clk 0:02:15]}  Nxf1 {[%clk 0:02:10]} 18. Bxe6 {[%clk 0:02:14]}  Nxg3 {[%clk 0:02:02]} 19. Bxf7+ {[%clk 0:02:12]}  Rxf7 {[%clk 0:02:00]} 20. hxg3 {[%clk 0:02:12]}  Bxb2 {[%clk 0:01:59]} 21. Rc2 {[%clk 0:02:12]}  Be5 {[%clk 0:01:52]} 22. Na5 {[%clk 0:02:04]}  Qb6 {[%clk 0:01:46]} 23. Qxb6 {[%clk 0:02:02]}  axb6 {[%clk 0:01:46]} 24. Nc4 {[%clk 0:02:02]}  Bd4 {[%clk 0:01:45]} 25. e3 {[%clk 0:02:02]}  Bc5 {[%clk 0:01:44]} 26. Rb2 {[%clk 0:02:02]}  e6 {[%clk 0:01:17]} 27. Nxb6 {[%clk 0:01:59]}  Ra7 {[%clk 0:01:16]} 28. Nc4 {[%clk 0:01:49]}  Kf7 {[%clk 0:01:16]} 29. Rc2 {[%clk 0:01:40]}  Ke7 {[%clk 0:01:10]} 30. Kf1 {[%clk 0:01:40]}  h5 {[%clk 0:01:09]} 31. Ke2 {[%clk 0:01:37]}  g5 {[%clk 0:01:09]} 32. Nd2 {[%clk 0:01:36]}  Bb4 {[%clk 0:01:02]} 33. Nf3 {[%clk 0:01:32]}  Kf6 {[%clk 0:01:00]} 34. Nd4 {[%clk 0:01:32]}  Bc5 {[%clk 0:00:58]} 35. Nb5 {[%clk 0:01:25]}  Ra5 {[%clk 0:00:54]} 36. Nc3 {[%clk 0:01:23]}  d5 {[%clk 0:00:54]} 37. Kf3 {[%clk 0:01:18]}  Ke5 {[%clk 0:00:53]} 38. Ne2 {[%clk 0:01:12]}  Kd6 {[%clk 0:00:44]} 39. Nc1 {[%clk 0:01:07]}  Ra7 {[%clk 0:00:39]} 40. Ke2 {[%clk 0:01:03]}  h4 {[%clk 0:00:38]} 41. gxh4 {[%clk 0:01:01]}  gxh4 {[%clk 0:00:38]} 42. Nd3 {[%clk 0:01:01]}  Bb6 {[%clk 0:00:37]} 43. Kf3 {[%clk 0:00:57]}  Rg7 {[%clk 0:00:32]} 44. Rc1 {[%clk 0:00:55]}  Bd8 {[%clk 0:00:31]} 45. Nf4 {[%clk 0:00:51]}  e5 {[%clk 0:00:30]} 46. Nh3 {[%clk 0:00:50]}  e4+ {[%clk 0:00:30]} 47. Ke2 {[%clk 0:00:50]}  Ra7 {[%clk 0:00:29]} 48. Rc2 {[%clk 0:00:49]}  Bf6 {[%clk 0:00:28]} 49. f3 {[%clk 0:00:48]}  Rg7 {[%clk 0:00:24]} 50. fxe4 {[%clk 0:00:40]}  Rg2+ {[%clk 0:00:23]} 51. Nf2 {[%clk 0:00:34]}  h3 {[%clk 0:00:22]} 52. Kf3 {[%clk 0:00:17]}  Bh4 {[%clk 0:00:19]} 53. exd5 {[%clk 0:00:16]}  Rg3+ {[%clk 0:00:19]} 54. Kf4 {[%clk 0:00:16]}  Kxd5 {[%clk 0:00:17]} 55. Ne4 {[%clk 0:00:15]}  Rg1 {[%clk 0:00:17]} 56. Rd2+ {[%clk 0:00:15]}  Kc4 {[%clk 0:00:16]} 57. Rh2 {[%clk 0:00:15]}  Rf1+ {[%clk 0:00:13]} 58. Kg4 {[%clk 0:00:14]}  Kd3 {[%clk 0:00:12]} 59. Nc5+ {[%clk 0:00:12]}  Kc4 {[%clk 0:00:12]} 60. Rc2+ {[%clk 0:00:11]}  Kd5 {[%clk 0:00:12]} 61. Kxh4 {[%clk 0:00:10]}  h2 {[%clk 0:00:12]} 62. e4+ {[%clk 0:00:10]}  Kd4 {[%clk 0:00:09]} 63. Nb3+ {[%clk 0:00:10]}  Kxe4 {[%clk 0:00:09]} 64. Rxh2 {[%clk 0:00:11]}  Kf4 {[%clk 0:00:09]} 65. Kh3 {[%clk 0:00:10]}  Rg1 {[%clk 0:00:05]} 66. Rd2 {[%clk 0:00:05]}  Ke3 {[%clk 0:00:05]} 67. Rg2 {[%clk 0:00:04]}  Rf1 {[%clk 0:00:04]} 68. Kg3 {[%clk 0:00:05]}  Kd3 {[%clk 0:00:04]} 69. Rf2 {[%clk 0:00:04]}  Re1 {[%clk 0:00:03]} 70. a4 {[%clk 0:00:02]}  Kc3 {[%clk 0:00:03]} 71. Rf3+ {[%clk 0:00:02]}  Kb4 {[%clk 0:00:03]} 72. a5 {[%clk 0:00:02]}  Re6 {[%clk 0:00:02]} 73. Kf4 {[%clk 0:00:02]}  Rf6+ {[%clk 0:00:01]} 74. Ke4 {[%clk 0:00:02]}  Re6+ {[%clk 0:00:01]} 75. Kd5 {[%clk 0:00:02]}  Rh6 {[%clk 0:00:01]} 76. Rd3 {[%clk 0:00:02]}  Kb5 {[%clk 0:00:01]} 77. Nd4+ {[%clk 0:00:02]}  Ka6 {[%clk 0:00:01]} 78. Ra3 {[%clk 0:00:01]}  Rh5+ {[%clk 0:00:02]} 79. Kc4 {[%clk 0:00:01]}  Rxa5 {[%clk 0:00:02]} 80. Re3 {[%clk 0:00:02]}  Ra4+ {[%clk 0:00:03]} 81. Kc5 {[%clk 0:00:02]}  Ra5+ {[%clk 0:00:03]} 82. Kc6 {[%clk 0:00:03]}  Ka7 {[%clk 0:00:03]} 83. Ne6 {[%clk 0:00:03]}  Ra6+ {[%clk 0:00:03]} 84. Kc7 {[%clk 0:00:04]}  Ra2 {[%clk 0:00:01]} 85. Nd4 {[%clk 0:00:04]}  Ka6 {[%clk 0:00:01]} 86. Nc6 {[%clk 0:00:03]}  Kb5 {[%clk 0:00:01]} 87. Re4 {[%clk 0:00:03]}  Kc5 {[%clk 0:00:01]} 88. Re5+ {[%clk 0:00:03]}  Kc4 {[%clk 0:00:01]} 89. Kd6 {[%clk 0:00:02]}  Rd2+ {[%clk 0:00:01]} 90. Kc7 {[%clk 0:00:02]}  Rd5 {[%clk 0:00:01]} 91. Re4+ {[%clk 0:00:02]}  Kc3 {[%clk 0:00:01]} 92. Kb6 {[%clk 0:00:02]}  Rd6 {[%clk 0:00:01]} 93. Kc5 {[%clk 0:00:02]}  Rd3 {[%clk 0:00:01]} 94. Rc4+ {[%clk 0:00:02]}  Kd2 {[%clk 0:00:01]} 95. Ne5 {[%clk 0:00:02]}  Rc3 {[%clk 0:00:02]} 96. Kd4 {[%clk 0:00:02]}  Rxc4+ {[%clk 0:00:02]} 97. Nxc4+ {[%clk 0:00:03]} 1/2-1/2


[Site "https://www.chess.com"]

[Event "Titled Tuesday Blitz July 27 2021"]
[White "Tsotsonava, Elene"]
[Black "Reprintsev, Alexander"]
[WhiteFideId "13615939"]
[BlackFideId "14100541"]
[WhiteElo "1847"]
[BlackElo "2126"]
[Result "0-1"]
[Round "10"]
[TimeControl "180+1"]
[Date "2021.07.27"]
[WhiteClock "0:00:10"]
[BlackClock "0:00:11"]

1. e4 {[%clk 0:03:00]}  d5 {[%clk 0:02:59]} 2. exd5 {[%clk 0:03:00]}  Qxd5 {[%clk 0:03:00]} 3. Nc3 {[%clk 0:03:01]}  Qa5 {[%clk 0:02:59]} 4. d4 {[%clk 0:03:01]}  Nf6 {[%clk 0:01:58]} 5. Nf3 {[%clk 0:03:01]}  Nc6 {[%clk 0:01:58]} 6. Bb5 {[%clk 0:02:57]}  Ne4 {[%clk 0:01:54]} 7. Bxc6+ {[%clk 0:02:54]}  bxc6 {[%clk 0:01:31]} 8. Bd2 {[%clk 0:02:42]}  Nxc3 {[%clk 0:01:26]} 9. Bxc3 {[%clk 0:02:41]}  Qd5 {[%clk 0:01:26]} 10. Qd2 {[%clk 0:01:58]}  Bg4 {[%clk 0:01:24]} 11. O-O-O {[%clk 0:01:43]}  Qxa2 {[%clk 0:01:23]} 12. Qf4 {[%clk 0:01:38]}  Bxf3 {[%clk 0:01:15]} 13. Qxf3 {[%clk 0:01:39]}  Qd5 {[%clk 0:01:13]} 14. Qg3 {[%clk 0:01:33]}  g6 {[%clk 0:01:12]} 15. Qxc7 {[%clk 0:01:32]}  Bh6+ {[%clk 0:01:12]} 16. Kb1 {[%clk 0:01:31]}  O-O {[%clk 0:01:12]} 17. Qe5 {[%clk 0:01:29]}  a5 {[%clk 0:01:05]} 18. Qxe7 {[%clk 0:01:20]}  a4 {[%clk 0:01:00]} 19. Qc5 {[%clk 0:01:18]}  Qxg2 {[%clk 0:00:56]} 20. d5 {[%clk 0:01:16]}  cxd5 {[%clk 0:00:45]} 21. Qd4 {[%clk 0:01:06]}  f6 {[%clk 0:00:45]} 22. Qxd5+ {[%clk 0:01:04]}  Qxd5 {[%clk 0:00:45]} 23. Rxd5 {[%clk 0:01:05]}  Bf4 {[%clk 0:00:42]} 24. h4 {[%clk 0:01:01]}  h5 {[%clk 0:00:41]} 25. Rg1 {[%clk 0:01:00]}  Kh7 {[%clk 0:00:32]} 26. Rd7+ {[%clk 0:00:58]}  Kh6 {[%clk 0:00:32]} 27. Rb7 {[%clk 0:00:33]}  a3 {[%clk 0:00:31]} 28. Rb6 {[%clk 0:00:32]}  axb2 {[%clk 0:00:27]} 29. Bxb2 {[%clk 0:00:24]}  Rab8 {[%clk 0:00:20]} 30. Rxb8 {[%clk 0:00:14]}  Rxb8 {[%clk 0:00:21]} 31. Ka2 {[%clk 0:00:14]}  Rb4 {[%clk 0:00:21]} 32. Bxf6 {[%clk 0:00:13]}  Bh2 {[%clk 0:00:15]} 33. Bg5+ {[%clk 0:00:13]}  Kg7 {[%clk 0:00:15]} 34. Rd1 {[%clk 0:00:13]}  Rb7 {[%clk 0:00:13]} 35. Rd3 {[%clk 0:00:11]}  Be5 {[%clk 0:00:12]} 36. Rb3 {[%clk 0:00:10]}  Rf7 {[%clk 0:00:12]} 37. f3 {[%clk 0:00:09]}  Rc7 {[%clk 0:00:10]} 38. Kb1 {[%clk 0:00:07]}  Kf7 {[%clk 0:00:11]} 39. Kc1 {[%clk 0:00:07]}  Ke6 {[%clk 0:00:11]} 40. Rb6+ {[%clk 0:00:06]}  Kf5 {[%clk 0:00:12]} 41. Kd2 {[%clk 0:00:06]}  Rd7+ {[%clk 0:00:10]} 42. Ke2 {[%clk 0:00:06]}  Rc7 {[%clk 0:00:09]} 43. Rb5 {[%clk 0:00:07]}  Rxc2+ {[%clk 0:00:08]} 44. Kd3 {[%clk 0:00:07]}  Rc3+ {[%clk 0:00:08]} 45. Kd2 {[%clk 0:00:07]}  Rc4 {[%clk 0:00:07]} 46. f4 {[%clk 0:00:07]}  Rxf4 {[%clk 0:00:07]} 47. Bxf4 {[%clk 0:00:07]}  Kxf4 {[%clk 0:00:08]} 48. Rb6 {[%clk 0:00:06]}  Kf5 {[%clk 0:00:07]} 49. Ke2 {[%clk 0:00:05]}  Bf6 {[%clk 0:00:08]} 50. Rb4 {[%clk 0:00:04]}  Be7 {[%clk 0:00:04]} 51. Kf3 {[%clk 0:00:03]}  Bxb4 {[%clk 0:00:05]} 52. Kg3 {[%clk 0:00:03]}  Be7 {[%clk 0:00:06]} 53. Kh3 {[%clk 0:00:03]}  Kf4 {[%clk 0:00:06]} 54. Kg2 {[%clk 0:00:03]}  Bxh4 {[%clk 0:00:07]} 55. Kh3 {[%clk 0:00:03]}  Bf6 {[%clk 0:00:07]} 56. Kh2 {[%clk 0:00:04]}  Kg4 {[%clk 0:00:07]} 57. Kg2 {[%clk 0:00:04]}  g5 {[%clk 0:00:08]} 58. Kh2 {[%clk 0:00:05]}  Kh4 {[%clk 0:00:08]} 59. Kh1 {[%clk 0:00:06]}  g4 {[%clk 0:00:09]} 60. Kg2 {[%clk 0:00:07]}  g3 {[%clk 0:00:10]} 61. Kh1 {[%clk 0:00:07]}  Kg4 {[%clk 0:00:10]} 62. Kg2 {[%clk 0:00:07]}  Be7 {[%clk 0:00:10]} 63. Kg1 {[%clk 0:00:08]}  Kf3 {[%clk 0:00:11]} 64. Kh1 {[%clk 0:00:09]}  g2+ {[%clk 0:00:11]} 65. Kh2 {[%clk 0:00:10]}  Bd6+ {[%clk 0:00:10]} 66. Kh3 {[%clk 0:00:09]}  g1=Q {[%clk 0:00:10]} 67. Kh4 {[%clk 0:00:10]}  Qg4# {[%clk 0:00:11]} 0-1


[Site "https://www.chess.com"]